bitfinex/quotes_SOLUSD_20240729
["timestamp","ask_amount","ask_price","bid_price","bid_amount"]
[1722258330350,41.46,192.89,192.74,6.6094]
[1722258330575,35.61,192.88,192.74,6.6094]
[1722258330957,35.61,192.88,192.73,20.0]
[1722258331875,35.61,192.88,192.74,45.34]
[1722258332177,66.83,192.88,192.74,0.17]
[1722258332379,15.61,192.86,192.72,5.38413844]
[1722258332682,15.61,192.86,192.73,21.03735086]
[1722258332683,20.0,192.85,192.73,21.03735086]
[1722258333180,20.0,192.89,192.75,20.0]
[1722258333352,20.0,192.9,192.76,1.03709829]
[1722258333558,20.0,192.9,192.77,0.34]
[1722258333881,51.22,192.9,192.72,34.16048828]
[1722258334079,15.61,192.89,192.72,25.38413844]
[1722258334264,15.61,192.85,192.73,0.17]
[1722258334591,15.61,192.85,192.69,47.73925143]
[1722258334592,15.4893,192.83,192.69,47.73925143]
[1722258334794,15.4893,192.83,192.69,7.73925143]
[1722258334795,20.0,192.82,192.69,7.73925143]
[1722258334969,20.0,192.82,192.68,7.73925143]
[1722258335351,20.0,192.82,192.69,7.73925143]
[1722258335799,20.0,192.82,192.68,7.73925143]
[1722258335979,20.0,192.82,192.67,25.38413611]
[1722258336160,20.0,192.82,192.68,7.74234567]
[1722258336479,15.4893,192.83,192.72,20.0]
[1722258336695,15.4893,192.83,192.73,46.37724068]
[1722258336854,15.4893,192.83,192.74,1.037238]
[1722258337055,15.4893,192.83,192.75,0.34]
[1722258337575,15.4893,192.83,192.75,0.17]
[1722258337775,15.4893,192.83,192.74,0.34]
[1722258338451,15.4893,192.83,192.75,1.0373254]
[1722258338959,15.4893,192.83,192.76,0.34]
[1722258339153,15.4893,192.83,192.77,1.03716156]
[1722258339352,15.4893,192.83,192.75,45.0]
[1722258339560,15.4893,192.83,192.76,1.03728384]
[1722258339762,6.0619,192.86,192.77,0.34]
[1722258339975,15.2072,192.87,192.78,1.03713668]
[1722258340197,15.2072,192.87,192.79,0.34]
[1722258340477,259.8,192.9,192.79,1.37696266]
[1722258340684,259.8,192.9,192.8,1.03689049]
[1722258340877,259.8,192.9,192.81,0.34]
[1722258341077,15.8397,192.91,192.81,0.34]
[1722258341295,15.8397,192.91,192.82,1.03690581]
[1722258341579,15.8397,192.91,192.83,0.34]
[1722258341877,15.8397,192.91,192.82,45.17]
[1722258342101,15.8397,192.91,192.83,1.03695682]
[1722258342304,15.8397,192.91,192.82,0.17]
[1722258342467,16.0482,192.97,192.84,20.17]
[1722258342667,16.0482,192.97,192.85,45.17]
[1722258342988,16.0482,192.97,192.86,0.17]
[1722258343768,15.61,192.96,192.86,0.17]
[1722258343973,20.0,192.95,192.82,20.0]
[1722258344294,20.0,192.95,192.83,45.34]
[1722258344500,35.61,192.95,192.83,0.34]
[1722258345499,16.0482,192.97,192.84,21.37682222]
[1722258345707,16.0482,192.97,192.84,1.03682222]
[1722258346007,31.6582,192.97,192.85,0.34]
[1722258346375,31.6582,192.97,192.84,0.34]
[1722258346901,20.0,192.96,192.84,0.34]
[1722258347408,60.61,192.95,192.81,1.03686655]
[1722258347706,20.0,192.94,192.82,1.37687795]
[1722258347898,20.0,192.94,192.82,0.34]
[1722258348088,20.0,192.94,192.81,0.34]
[1722258348491,20.0,192.94,192.81,46.37679465]
[1722258348681,35.61,192.94,192.81,45.34]
[1722258348886,35.61,192.94,192.78,21.03686302]
[1722258349385,35.61,192.94,192.79,1.03696483]
[1722258349980,35.61,192.94,192.78,20.0]
[1722258350188,35.61,192.94,192.79,45.34]
[1722258350590,35.61,192.94,192.8,1.03696474]
[1722258350835,35.61,192.94,192.81,0.34]
[1722258351327,25.86,192.92,192.81,0.34]
[1722258351605,25.86,192.92,192.82,1.03696493]
[1722258351606,20.0,192.91,192.82,1.03696493]
[1722258351908,20.0,192.91,192.81,1.03696627]
[1722258352105,20.0,192.91,192.82,0.17]
[1722258352290,46.83,192.96,192.82,1.0369651]
[1722258352291,41.47,192.94,192.82,1.0369651]
[1722258352494,35.61,192.93,192.8,0.34]
[1722258352803,41.47,192.88,192.72,20.0]
[1722258353005,25.86,192.88,192.76,20.0]
[1722258353175,20.0,192.87,192.76,20.0]
[1722258353781,20.0,192.87,192.77,1.03708418]
[1722258354289,20.0,192.88,192.78,0.34]
[1722258354685,20.0,192.88,192.79,1.03708425]
[1722258355007,20.0,192.88,192.8,0.34]
[1722258355183,290.8452,192.95,192.81,1.03704636]
[1722258355377,290.8452,192.95,192.82,0.34]
[1722258355378,15.4352,192.95,192.82,0.34]
[1722258355601,15.4352,192.95,192.82,45.34]
[1722258356016,15.4352,192.95,192.83,21.03681569]
[1722258356211,15.4352,192.95,192.84,45.34]
[1722258356912,25.86,192.94,192.84,45.34]
[1722258357115,41.47,192.94,192.84,0.17]
[1722258357320,41.47,192.94,192.81,6.6058]
[1722258357494,15.4352,192.95,192.82,46.37691358]
[1722258357830,20.0,192.94,192.82,46.37674815]
[1722258357998,20.0,192.94,192.82,45.34]
[1722258359697,35.61,192.94,192.82,45.34]
[1722258360589,41.47,192.93,192.82,0.34]
[1722258360850,35.61,192.92,192.77,1.03702332]
[1722258361005,35.61,192.92,192.78,0.34]
[1722258361205,25.86,192.9,192.76,31.40245128]
[1722258361406,20.0,192.89,192.76,11.40245128]
[1722258362104,20.0,192.89,192.76,5.36365128]
[1722258362105,41.47,192.87,192.76,5.36365128]
[1722258362309,15.1797,192.85,192.72,6.4475]
[1722258362495,41.47,192.84,192.72,6.4475]
[1722258362819,20.0,192.83,192.72,6.4475]
[1722258363000,20.0,192.83,192.71,5.36432546]
[1722258363412,41.47,192.81,192.71,5.36432546]
[1722258363615,20.0,192.8,192.68,6.1666]
[1722258363801,35.61,192.8,192.69,1.03762838]
[1722258364497,35.61,192.8,192.68,6.1666]
[1722258365019,20.0,192.8,192.69,1.03758937]
[1722258365202,20.0,192.8,192.69,21.03758937]
[1722258365402,20.0,192.83,192.69,21.03758937]
[1722258365605,20.0,192.83,192.69,41.03758937]
[1722258365813,20.0,192.84,192.7,45.0]
[1722258366103,20.0,192.84,192.71,1.2073648]
[1722258366321,20.0,192.84,192.72,0.17]
[1722258366702,51.22,192.84,192.68,6.1666]
[1722258366906,29.12,192.83,192.68,6.1666]
[1722258367207,15.61,192.81,192.68,6.1666]
[1722258367726,20.0,192.8,192.68,6.1666]
[1722258367891,20.0,192.8,192.69,0.34]
[1722258368094,20.0,192.8,192.69,45.34]
[1722258368291,35.61,192.81,192.69,45.34]
[1722258368726,35.61,192.81,192.68,1.03766462]
[1722258368926,60.61,192.8,192.69,1.03772529]
[1722258369219,35.61,192.79,192.65,14.92754217]
[1722258369924,35.61,192.79,192.66,0.17]
[1722258370238,20.0,192.79,192.67,1.0377269]
[1722258370402,20.0,192.8,192.68,0.34]
[1722258370603,20.0,192.8,192.69,1.03759203]
[1722258370803,20.0,192.8,192.7,0.34]
[1722258371012,20.0,192.8,192.71,1.03759206]
[1722258371636,29.12,192.83,192.7,20.34]
[1722258371817,29.12,192.87,192.71,46.03742182]
[1722258372007,6.0271,192.89,192.72,20.34]
[1722258372331,6.0271,192.89,192.73,45.0]
[1722258372531,6.0271,192.89,192.74,0.34]
[1722258372738,15.61,192.88,192.74,0.34]
[1722258374815,20.0,192.84,192.74,0.34]
[1722258375128,35.61,192.84,192.68,20.0]
[1722258375430,15.61,192.8,192.64,26.2815]
[1722258375730,35.61,192.79,192.65,1.03771752]
[1722258376910,35.61,192.79,192.66,0.34]
[1722258377335,35.61,192.79,192.67,1.03771738]
[1722258377509,20.0,192.79,192.68,0.34]
[1722258377711,15.4473,192.78,192.67,45.0]
[1722258378029,15.4473,192.78,192.68,0.17]
[1722258378712,15.4473,192.78,192.68,1.03767544]
[1722258378911,15.4473,192.78,192.69,0.34]
[1722258379323,20.0,192.8,192.69,0.34]
[1722258379536,20.0,192.82,192.7,21.03765276]
[1722258379710,20.0,192.82,192.71,1.37743797]
[1722258379912,20.0,192.82,192.71,45.34]
[1722258380114,21.5989,192.83,192.71,46.37741868]
[1722258380845,21.5989,192.83,192.72,20.0]
[1722258381029,21.5989,192.83,192.73,45.34]
[1722258382620,20.0,192.82,192.73,45.34]
[1722258382822,35.61,192.82,192.66,20.0]
[1722258383531,35.61,192.82,192.69,20.0]
[1722258383532,20.0,192.82,192.69,20.0]
[1722258383736,20.0,192.82,192.67,21.03749858]
[1722258383912,20.0,192.82,192.67,20.0]
[1722258384116,20.0,192.82,192.68,0.34]
[1722258384323,20.0,192.82,192.68,1.37757417]
[1722258384630,20.0,192.82,192.69,20.0]
[1722258384831,20.0,192.82,192.7,0.34]
[1722258385021,20.0,192.82,192.71,1.03749762]
[1722258385222,20.0,192.82,192.72,0.34]
[1722258385528,20.0,192.82,192.73,0.34]
[1722258385731,20.0,192.82,192.7,45.34]
[1722258387212,21.5989,192.83,192.71,21.03742401]
[1722258387421,21.5989,192.83,192.72,45.34]
[1722258387625,21.5989,192.83,192.73,1.03735811]
[1722258387824,21.3926,192.88,192.75,20.0]
[1722258388037,47.2726,192.88,192.76,46.37714424]
[1722258388241,47.2726,192.88,192.77,1.03714424]
[1722258388414,47.2726,192.88,192.78,0.34]
[1722258389041,47.2726,192.88,192.77,0.34]
[1722258389226,15.61,192.87,192.72,6.1929]
[1722258389547,44.72,192.86,192.73,46.03736148]
[1722258389735,20.0,192.85,192.73,65.0]
[1722258389914,20.0,192.86,192.73,65.0]
[1722258390113,20.0,192.86,192.73,45.0]
[1722258390349,20.0,192.87,192.72,45.0]
[1722258390945,35.61,192.87,192.72,45.0]
[1722258391547,35.61,192.87,192.74,30.0]
[1722258391755,35.61,192.87,192.75,0.17]
[1722258392040,20.0,192.87,192.75,45.34]
[1722258392440,35.61,192.87,192.75,45.34]
[1722258392635,35.61,192.87,192.76,30.0]
[1722258395115,29.11,192.86,192.76,30.0]
[1722258395347,30.628,192.84,192.76,30.0]
[1722258395538,6.0812,192.81,192.76,30.0]
[1722258395746,35.61,192.8,192.67,7.74102168]
[1722258395920,15.61,192.78,192.7,30.0]
[1722258396356,20.0,192.77,192.64,7.7451067]
[1722258396529,15.018,192.79,192.67,20.0]
[1722258396846,15.018,192.79,192.67,27.7451067]
[1722258397318,15.018,192.79,192.68,45.34]
[1722258397720,15.018,192.79,192.68,20.34]
[1722258397926,15.018,192.79,192.69,45.0]
[1722258398254,15.018,192.79,192.7,21.37756028]
[1722258398550,21.2957,192.87,192.72,20.0]
[1722258398761,21.2957,192.87,192.73,0.34]
[1722258399049,21.2957,192.87,192.73,45.34]
[1722258399520,21.2957,192.87,192.74,1.03719544]
[1722258399719,21.2957,192.87,192.75,0.34]
[1722258399919,21.2957,192.87,192.76,0.34]
[1722258400147,36.9057,192.87,192.73,45.34]
[1722258400345,35.61,192.86,192.73,45.34]
[1722258400532,35.61,192.86,192.68,20.0]
[1722258400725,15.61,192.84,192.69,1.03744814]
[1722258401049,15.61,192.84,192.7,20.0]
[1722258401355,20.0,192.83,192.7,20.0]
[1722258401522,20.0,192.83,192.7,27.74125287]
[1722258401717,20.0,192.84,192.7,27.74125287]
[1722258401946,35.61,192.84,192.71,45.34]
[1722258402257,35.61,192.84,192.71,53.08125287]
[1722258402443,35.61,192.84,192.72,21.03744776]
[1722258402444,20.0,192.84,192.72,21.03744776]
[1722258402753,20.0,192.86,192.74,20.0]
[1722258402921,20.0,192.86,192.75,1.37719839]
[1722258403122,20.0,192.86,192.75,46.37719839]
[1722258403439,21.2957,192.87,192.76,20.0]
[1722258403750,21.2957,192.87,192.77,45.17]
[1722258403921,21.2957,192.87,192.78,0.17]
[1722258405229,275.3644,192.92,192.79,1.03708177]
[1722258405437,20.0,192.91,192.8,0.34]
[1722258405649,20.0,192.91,192.81,1.03694734]
[1722258405886,20.0,192.91,192.82,0.34]
[1722258406057,15.5644,192.92,192.82,0.34]
[1722258406358,16.3138,192.97,192.84,20.0]
[1722258406559,16.3138,192.97,192.85,46.37659852]
[1722258406857,16.3138,192.97,192.85,45.34]
[1722258407162,16.3138,192.97,192.85,0.34]
[1722258407336,16.3138,192.97,192.86,1.03682076]
[1722258407526,16.3138,192.97,192.87,0.17]
[1722258407948,31.9238,192.97,192.82,7.72361834]
[1722258408229,61.0338,192.97,192.83,46.37683362]
[1722258408549,31.9238,192.97,192.83,0.34]
[1722258408856,44.72,192.95,192.83,0.34]
[1722258409040,20.0,192.94,192.83,0.34]
[1722258409239,35.61,192.94,192.82,0.34]
[1722258409538,0.34,192.93,192.75,7.72361834]
[1722258409744,31.0792,192.91,192.76,20.0]
[1722258409941,35.61,192.9,192.76,20.0]
[1722258410148,20.0,192.9,192.76,20.0]
[1722258410461,29.11,192.87,192.72,20.0]
[1722258410677,29.11,192.87,192.71,1.03712032]
[1722258410678,29.11,192.87,192.71,7.73414826]
[1722258410959,29.11,192.87,192.72,20.0]
[1722258410960,20.0,192.86,192.72,20.0]
[1722258411140,20.0,192.86,192.73,1.0373082]
[1722258411459,35.61,192.86,192.7,8.77140929]
[1722258411641,45.0,192.85,192.7,1.03744555]
[1722258411835,36.2416,192.84,192.72,20.0]
[1722258412032,16.2416,192.84,192.7,7.73414826]
[1722258412255,20.0,192.83,192.69,19.72166987]
[1722258412454,6.4975,192.82,192.69,11.98752161]
[1722258413142,6.4975,192.82,192.69,13.02501943]
[1722258413358,6.4975,192.82,192.7,20.0]
[1722258414050,6.4975,192.82,192.71,0.34]
[1722258414248,6.4975,192.82,192.72,20.0]
[1722258414463,6.4975,192.82,192.73,45.34]
[1722258414661,6.4975,192.82,192.73,0.34]
[1722258414955,6.4975,192.82,192.72,0.34]
[1722258415662,6.4975,192.82,192.69,5.35502161]
[1722258415874,45.89,192.81,192.69,5.35502161]
[1722258416056,45.89,192.81,192.65,7.7418525]
[1722258416253,25.89,192.78,192.65,7.7418525]
[1722258416460,20.0,192.77,192.61,21.0376836]
[1722258416646,20.0,192.77,192.64,7.74801016]
[1722258416831,16.3363,192.76,192.63,13.10445647]
[1722258417219,16.3363,192.76,192.64,1.03788328]
[1722258417220,20.0,192.75,192.64,1.03788328]
[1722258417489,20.0,192.75,192.63,5.35644631]
[1722258417689,6.1915,192.74,192.62,7.74939034]
[1722258417895,16.3363,192.71,192.58,8.53934154]
[1722258418107,16.3363,192.71,192.58,0.7899512]
[1722258418425,80.61,192.7,192.58,0.7899512]
[1722258418565,0.34,192.69,192.58,0.7899512]
[1722258418767,21.8015,192.68,192.58,0.7899512]
[1722258418993,65.0,192.67,192.58,0.7899512]
[1722258419400,80.61,192.67,192.58,0.7899512]
[1722258420162,16.495,192.65,192.58,0.7899512]
[1722258420367,6.5629,192.63,192.46,7.76477476]
[1722258420673,65.0,192.62,192.53,5.1938]
[1722258421181,65.0,192.62,192.51,5.1943]
[1722258421380,65.0,192.62,192.51,5.1944]
[1722258421578,65.0,192.62,192.41,14.7678]
[1722258421579,16.5522,192.61,192.43,20.0]
[1722258421901,16.5522,192.61,192.5,5.1947]
[1722258421902,65.0,192.6,192.5,5.1947]
[1722258422071,65.0,192.6,192.4,1.03888753]
[1722258422408,0.34,192.59,192.4,5.35026199]
[1722258422708,0.34,192.59,192.47,5.1955]
[1722258422709,15.8185,192.57,192.47,5.1955]
[1722258422874,15.8185,192.57,192.39,1.82905104]
[1722258422875,94.48,192.56,192.39,1.82905104]
[1722258423067,94.48,192.56,192.4,1.03924348]
[1722258423492,65.34,192.56,192.4,1.03924348]
[1722258423685,65.34,192.56,192.41,20.0]
[1722258423889,65.0,192.56,192.41,20.0]
[1722258424282,0.17,192.55,192.42,1.03901543]
[1722258424494,0.34,192.55,192.4,1.03916414]
[1722258424717,65.0,192.56,192.4,1.03916517]
[1722258425019,20.0,192.56,192.42,20.0]
[1722258425183,15.8185,192.57,192.43,1.03891386]
[1722258425502,15.8185,192.57,192.46,20.0]
[1722258425676,29.14,192.8,192.48,20.0]
[1722258425881,15.5784,192.63,192.51,20.0]
[1722258426084,15.5784,192.63,192.52,46.37845922]
[1722258426274,15.5784,192.63,192.52,0.34]
[1722258426478,15.5784,192.63,192.47,20.0]
[1722258426677,15.5784,192.63,192.51,20.0]
[1722258426979,15.5784,192.63,192.52,45.34]
[1722258427179,15.5784,192.63,192.52,0.34]
[1722258427376,15.5784,192.63,192.45,20.0]
[1722258427598,15.5784,192.63,192.46,45.0]
[1722258428008,0.34,192.62,192.46,45.0]
[1722258428211,45.34,192.62,192.46,45.0]
[1722258428720,20.0,192.61,192.46,45.0]
[1722258428883,45.0,192.6,192.47,0.34]
[1722258429389,20.0,192.59,192.47,0.34]
[1722258429795,20.0,192.59,192.43,1.03880719]
[1722258430008,45.0,192.58,192.42,20.0]
[1722258430197,20.0,192.57,192.42,21.0389262]
[1722258430392,20.0,192.57,192.42,20.0]
[1722258431097,20.0,192.57,192.42,21.03892213]
[1722258431302,35.95,192.62,192.44,20.0]
[1722258431510,60.61,192.61,192.45,46.37881603]
[1722258431809,35.61,192.6,192.45,45.34]
[1722258431991,60.78,192.59,192.45,45.34]
[1722258432309,35.61,192.58,192.45,0.34]
[1722258432509,45.0,192.57,192.45,0.17]
[1722258432708,15.61,192.56,192.4,50.17897541]
[1722258432908,45.0,192.55,192.4,50.17897541]
[1722258433083,20.0,192.54,192.4,50.17897541]
[1722258434107,0.17,192.59,192.4,49.14]
[1722258434413,15.61,192.58,192.41,0.34]
[1722258434589,80.78,192.57,192.41,0.34]
[1722258434916,60.78,192.56,192.41,45.34]
[1722258435214,20.0,192.55,192.41,45.34]
[1722258435823,20.0,192.55,192.42,1.03909608]
[1722258436120,20.0,192.55,192.41,45.34]
[1722258436816,6.1777,192.53,192.41,45.34]
[1722258437392,6.1777,192.53,192.42,46.03910344]
[1722258437591,6.1777,192.53,192.42,1.03910344]
[1722258437809,6.1777,192.53,192.43,0.34]
[1722258439231,21.7561,192.63,192.46,20.0]
[1722258439399,21.7561,192.63,192.47,66.37858551]
[1722258439600,21.7561,192.63,192.49,20.0]
[1722258439815,21.7561,192.63,192.5,45.34]
[1722258440318,21.7561,192.63,192.51,21.0385859]
[1722258440507,21.7561,192.63,192.52,46.37852095]
[1722258440829,21.7561,192.63,192.53,45.0]
[1722258441123,21.7701,192.68,192.54,1.03843336]
[1722258441321,21.7701,192.68,192.55,0.34]
[1722258441529,21.7701,192.68,192.56,1.03835848]
[1722258441730,21.7701,192.68,192.53,45.0]
[1722258442409,5.45777555,192.75,192.42,20.0]
[1722258442410,15.61,192.61,192.42,20.0]
[1722258442595,15.61,192.59,192.4,20.0]
[1722258442800,15.61,192.59,192.39,36.3983512]
[1722258442801,16.517,192.57,192.39,36.3983512]
[1722258443002,20.0,192.56,192.4,1.03897042]
[1722258443608,20.0,192.56,192.39,36.3983512]
[1722258444007,20.0,192.56,192.4,1.03902898]
[1722258444436,20.0,192.56,192.41,0.34]
[1722258444612,66.83,192.56,192.39,29.9299512]
[1722258444821,15.61,192.54,192.39,0.7899512]
[1722258445006,65.0,192.53,192.39,0.7899512]
[1722258446107,15.61,192.52,192.39,0.7899512]
[1722258446426,65.0,192.51,192.39,0.7899512]
[1722258446813,80.61,192.51,192.39,0.7899512]
[1722258447000,22.2534,192.5,192.39,0.7899512]
[1722258447334,80.61,192.49,192.39,0.7899512]
[1722258447521,80.95,192.49,192.39,0.7899512]
[1722258448115,31.22,192.48,192.39,0.7899512]
[1722258448446,80.95,192.47,192.39,0.7899512]
[1722258448630,80.61,192.47,192.39,0.7899512]
[1722258448804,0.34,192.46,192.39,0.7899512]
[1722258449634,15.61,192.43,192.39,0.7899512]
[1722258449941,31.22,192.44,192.39,0.7899512]
[1722258449942,15.61,192.41,192.39,0.7899512]
[1722258450108,65.0,192.4,192.39,0.7899512]
[1722258450509,15.61,192.43,192.39,0.7899512]
[1722258450725,20.0,192.42,192.39,0.7899512]
[1722258451112,35.61,192.42,192.39,0.7899512]
[1722258451427,45.0,192.41,192.39,0.7899512]
[1722258451643,35.61,192.42,192.39,0.7899512]
[1722258453312,45.0,192.41,192.39,0.7899512]
[1722258453510,20.0,192.4,192.39,0.7899512]
[1722258453826,15.78,192.43,192.39,0.7899512]
[1722258454016,65.0,192.42,192.39,0.7899512]
[1722258455139,15.61,192.41,192.39,0.7899512]
[1722258455344,65.0,192.4,192.39,0.7899512]
[1722258455845,71.4919,192.4,192.39,0.7899512]
[1722258457145,87.1019,192.4,192.39,0.7899512]
[1722258457323,87.4419,192.4,192.39,0.7899512]
[1722258458132,87.1019,192.4,192.39,0.7899512]
[1722258458647,87.4419,192.4,192.33,4.88912926]
[1722258458826,62.9711,192.39,192.33,4.88912926]
[1722258459152,65.0,192.38,192.33,4.88912926]
[1722258459526,20.0,192.38,192.33,4.88912926]
[1722258459732,35.61,192.38,192.33,4.88912926]
[1722258459942,45.0,192.37,192.33,4.88912926]
[1722258460150,20.0,192.36,192.33,4.88912926]
[1722258460322,45.0,192.35,192.33,4.88912926]
[1722258460650,20.0,192.36,192.33,4.88912926]
[1722258461428,20.0,192.38,192.33,4.88912926]
[1722258461653,16.1411,192.39,192.33,4.88912926]
[1722258462035,21.2979,192.47,192.34,1.03982777]
[1722258462349,21.2979,192.47,192.33,4.88912926]
[1722258462350,46.83,192.46,192.33,4.88912926]
[1722258462745,15.61,192.46,192.33,4.88912926]
[1722258463335,21.2979,192.47,192.33,4.88912926]
[1722258463534,21.2979,192.47,192.34,45.0]
[1722258464032,21.2979,192.47,192.35,0.34]
[1722258464242,21.2979,192.47,192.34,52.8001032]
[1722258464435,21.2979,192.47,192.34,45.0]
[1722258464757,21.2979,192.47,192.34,52.78705557]
[1722258464930,20.0,192.46,192.34,52.78705557]
[1722258465256,20.0,192.46,192.35,7.78705557]
[1722258465430,20.0,192.46,192.34,52.78705557]
[1722258465849,20.0,192.46,192.34,7.78705557]
[1722258466032,92.17,192.45,192.33,4.88912926]
[1722258466225,15.61,192.43,192.33,4.88912926]
[1722258466427,80.95,192.42,192.33,4.88912926]
[1722258466629,92.17,192.42,192.33,4.88912926]
[1722258466839,15.61,192.4,192.33,4.88912926]
[1722258467047,20.0,192.39,192.33,4.88912926]
[1722258467865,15.61,192.38,192.33,4.88912926]
[1722258468037,20.0,192.39,192.33,4.88912926]
[1722258468038,77.2458,192.37,192.33,4.88912926]
[1722258468361,20.0,192.36,192.33,4.88912926]
[1722258470554,15.61,192.35,192.33,4.88912926]
[1722258471058,20.0,192.36,192.33,4.88912926]
[1722258471647,35.61,192.36,192.33,4.88912926]
[1722258471844,60.61,192.35,192.33,4.88912926]
[1722258472061,60.78,192.35,192.33,4.88912926]
[1722258472241,20.0,192.34,192.33,4.88912926]
[1722258472441,35.61,192.34,192.33,4.88912926]
[1722258472659,80.95,192.34,192.33,3.42510912]
[1722258473029,80.78,192.34,192.33,3.42510912]
[1722258473238,80.95,192.34,192.33,3.42510912]
[1722258474464,112.17,192.34,192.33,3.42510912]
[1722258474647,112.17,192.34,192.31,4.7876736]
[1722258474967,112.17,192.34,192.31,2.89446973]
[1722258474968,15.61,192.32,192.31,2.89446973]
[1722258475163,112.17,192.32,192.31,2.89446973]
[1722258475670,53.2963,192.31,192.28,1.52414607]
[1722258475868,20.0,192.3,192.28,1.52414607]
[1722258478761,35.61,192.3,192.28,1.52414607]
[1722258479356,60.78,192.29,192.28,1.52414607]
[1722258479553,112.17,192.29,192.28,1.52414607]
[1722258480782,46.83,192.27,192.26,4.1615531]
[1722258480987,112.17,192.27,192.26,4.1615531]
[1722258481489,113.82191701,192.27,192.26,4.1615531]
[1722258481902,66.99191701,192.27,192.26,4.1615531]
[1722258482114,82.60191701,192.27,192.26,4.1615531]
[1722258482405,113.82191701,192.27,192.26,4.1615531]
[1722258483365,113.82191701,192.27,192.19,1.84955478]
[1722258483676,46.83,192.25,192.19,1.84955478]
[1722258483871,15.61,192.23,192.19,1.84955478]
[1722258484071,35.78,192.23,192.19,1.84955478]
[1722258484272,134.1052,192.23,192.19,1.84955478]
[1722258485375,135.75711701,192.23,192.22,21.21841085]
[1722258485600,135.75711701,192.23,192.22,3.15181085]
[1722258486893,44.20951701,192.23,192.22,3.15181085]
[1722258487101,42.5576,192.23,192.22,3.15181085]
[1722258487484,35.95,192.23,192.22,3.15181085]
[1722258487907,20.0,192.23,192.22,3.15181085]
[1722258488271,21.6351,192.28,192.22,3.15181085]
[1722258488472,52.8551,192.28,192.22,3.15181085]
[1722258488777,5.199,192.35,192.22,3.15181085]
[1722258488778,35.4338,192.32,192.22,3.15181085]
[1722258488971,15.61,192.31,192.22,3.15181085]
[1722258489494,46.83,192.31,192.22,3.15181085]
[1722258490279,15.61,192.29,192.22,3.15181085]
[1722258491203,15.61,192.3,192.22,3.15181085]
[1722258491402,45.34,192.29,192.22,3.15181085]
[1722258491608,20.0,192.28,192.22,3.15181085]
[1722258491785,0.34,192.29,192.22,3.15181085]
[1722258491786,20.0,192.29,192.22,3.15181085]
[1722258491988,37.4216,192.37,192.22,3.15181085]
[1722258492504,37.4216,192.37,192.23,15.3528]
[1722258492505,15.61,192.36,192.23,15.3528]
[1722258492673,15.61,192.36,192.24,45.0]
[1722258492877,46.83,192.36,192.23,15.3528]
[1722258493683,15.61,192.34,192.23,15.3528]
[1722258493898,35.61,192.33,192.23,15.3528]
[1722258494091,35.61,192.35,192.23,15.3528]
[1722258494282,66.83,192.35,192.23,15.3528]
[1722258495212,35.61,192.35,192.23,15.3528]
[1722258495421,60.95,192.34,192.23,15.3528]